fUST/lending_fUST_20250221
["ID","MTS","AMOUNT","RATE_DAILY","PERIOD"]
[353827261,1740081056636,-500.0,0.0001452,2]
[353827262,1740081056645,-500.0,0.0001452,2]
[353827263,1740081056655,-651.0,0.0001452,2]
[353827264,1740081056664,-593.64,0.0001452,2]
[353827265,1740081056673,-753.07,0.0001452,2]
[353827266,1740081056682,-310.33331655,0.0001452,2]
[353827267,1740081056691,-13040.78,0.0001452,2]
[353827268,1740081056701,-1186.37,0.0001452,2]
[353827269,1740081056710,-34993.76,0.0001452,2]
[353827270,1740081056719,-1017.86,0.0001452,2]
[353827271,1740081056729,-500.0,0.0001452,2]
[353827272,1740081056738,-2077.25,0.0001452,2]
[353827273,1740081056747,-963.85,0.0001452,2]
[353827274,1740081056756,-2415.36,0.0001452,2]
[353827275,1740081056767,-1104.4,0.0001452,2]
[353827276,1740081056777,-500.0,0.0001452,2]
[353827277,1740081056786,-928.84,0.0001452,2]
[353827278,1740081056795,-2659.11,0.0001452,2]
[353827279,1740081056805,-5902.48,0.0001452,2]
[353827280,1740081056814,-893.57,0.0001452,2]
[353827281,1740081056823,-500.0,0.0001452,2]
[353827282,1740081056831,-2976.46,0.0001452,2]
[353827283,1740081056841,-637.75,0.0001452,2]
[353827284,1740081056850,-500.0,0.0001452,2]
[353827285,1740081056859,-3624.95,0.0001452,2]
[353827286,1740081056869,-500.0,0.0001452,2]
[353827287,1740081056878,-500.0,0.0001452,2]
[353827288,1740081056887,-1955.2,0.0001452,2]
[353827289,1740081056897,-1867.16,0.0001452,2]
[353827290,1740081056907,-1429.61,0.0001452,2]
[353827291,1740081056916,-500.0,0.0001452,2]
[353827292,1740081056925,-500.0,0.0001452,2]
[353827293,1740081056934,-350.22116527,0.0001452,2]
[353827294,1740081056943,-1152.68,0.0001452,2]
[353827295,1740081056952,-500.0,0.0001452,2]
[353827296,1740081056963,-1741.58,0.0001452,2]
[353827297,1740081056973,-1376.24,0.0001452,2]
[353827298,1740081056982,-5313.9,0.0001452,2]
[353827299,1740081056992,-500.0,0.0001452,2]
[353827300,1740081057082,-1545.04,0.0001452,2]
[353827301,1740081057092,-500.0,0.0001452,2]
[353827302,1740081057102,-12473.25,0.0001452,2]
[353827303,1740081057112,-668.14,0.0001452,2]
[353827304,1740081057121,-500.0,0.0001452,2]
[353827305,1740081057131,-1204.27,0.0001452,2]
[353827306,1740081057140,-1809.48,0.0001452,2]
[353827307,1740081057149,-500.0,0.0001452,2]
[353827308,1740081057158,-8422.45,0.0001452,2]
[353827309,1740081057168,-536.89,0.0001452,2]
[353827310,1740081057178,-568.82,0.0001452,2]
[353827311,1740081057187,-2793.5,0.0001452,2]
[353827312,1740081057197,-3282.07,0.0001452,2]
[353827313,1740081057207,-309.0,0.0001458,2]
[353827314,1740081057216,-157.5927324,0.00014601,2]
[353827315,1740081057225,-500.0,0.00014602,2]
[353827316,1740081057234,-500.0,0.00014602,2]
[353827317,1740081057244,-500.0,0.00014602,2]
[353827318,1740081057253,-500.0,0.00014602,2]
[353827319,1740081057262,-1193.65,0.00014602,2]
[353827320,1740081057277,-584.91,0.00014602,2]
[353827321,1740081057287,-500.0,0.00014602,2]
[353827322,1740081057296,-500.0,0.00014602,2]
[353827323,1740081057306,-562.22,0.00014602,2]
[353827324,1740081057316,-726.14,0.00014602,2]
[353827325,1740081057326,-500.0,0.00014602,2]
[353827326,1740081057335,-500.0,0.00014602,2]
[353827327,1740081057346,-500.0,0.00014602,2]
[353827328,1740081057356,-854.98,0.00014602,2]
[353827329,1740081057366,-518.04,0.00014602,2]
[353827330,1740081057375,-796.66,0.00014602,2]
[353827331,1740081057386,-576.57,0.00014602,2]
[353827332,1740081057396,-215.98,0.00014602,2]
[353827333,1740081057405,-520.56,0.00014602,2]
[353827334,1740081057414,-500.0,0.00014602,2]
[353827335,1740081057423,-500.0,0.00014602,2]
[353827336,1740081057432,-500.0,0.00014602,2]
[353827337,1740081057442,-855.71,0.00014602,2]
[353827338,1740081057451,-500.0,0.00014602,2]
[353827339,1740081057460,-252.44183892,0.00014602,2]
[353827340,1740081057470,-653.55,0.00014602,2]
[353827341,1740081057479,-527.25,0.00014602,2]
[353827342,1740081057488,-526.08,0.00014602,2]
[353827343,1740081057499,-500.0,0.00014602,2]
[353827344,1740081057508,-500.0,0.00014602,2]
[353827345,1740081057518,-500.0,0.00014602,2]
[353827346,1740081057527,-500.0,0.00014602,2]
[353827347,1740081057536,-651.0,0.00014602,2]
[353827348,1740081057546,-593.64,0.00014602,2]
[353827349,1740081057555,-753.07,0.00014602,2]
[353827350,1740081057565,-13040.78,0.00014602,2]
[353827351,1740081057574,-1186.37,0.00014602,2]
[353827352,1740081057584,-34993.76,0.00014602,2]
[353827353,1740081057593,-1017.86,0.00014602,2]
[353827354,1740081057603,-500.0,0.00014602,2]
[353827355,1740081057613,-2077.25,0.00014602,2]
[353827356,1740081057623,-963.85,0.00014602,2]
[353827357,1740081057632,-196.012323,0.00014602,2]
[353827358,1740081057642,-2415.36,0.00014602,2]
[353827359,1740081057651,-1104.4,0.00014602,2]
[353827360,1740081057662,-500.0,0.00014602,2]
[353827361,1740081057671,-928.84,0.00014602,2]
[353827362,1740081057681,-2659.11,0.00014602,2]
[353827363,1740081057690,-5902.48,0.00014602,2]
[353827364,1740081057700,-893.57,0.00014602,2]
[353827365,1740081057709,-500.0,0.00014602,2]
[353827366,1740081057718,-1838.50563953,0.00014602,2]
[353827367,1740081057981,-1891.5,0.00014273,2]
[353827368,1740081057991,-1891.5,0.00014356,2]
[353827369,1740081058000,-1891.5,0.00014438,2]
[353827370,1740081058011,-1891.5,0.0001452,2]
[353827371,1740081058020,-1137.95436047,0.00014602,2]
[353827372,1740081058029,-296.05773553,0.00014602,2]
[353827373,1740081058062,-341.69226447,0.00014602,2]
[353827374,1740081058072,-500.0,0.00014602,2]
[353827375,1740081058081,-500.0,0.00014602,2]
[353827376,1740081058091,-1955.2,0.00014602,2]
[353827377,1740081058100,-1867.16,0.00014602,2]
[353827378,1740081058109,-1429.61,0.00014602,2]
[353827379,1740081058118,-500.0,0.00014602,2]
[353827380,1740081058128,-500.0,0.00014602,2]
[353827381,1740081058137,-1152.68,0.00014602,2]
[353827382,1740081058147,-151.0,0.00014602,2]
[353827383,1740081058157,-500.0,0.00014602,2]
[353827384,1740081058167,-1741.58,0.00014602,2]
[353827385,1740081058177,-1376.24,0.00014602,2]
[353827386,1740081058187,-5313.9,0.00014602,2]
[353827387,1740081058196,-500.0,0.00014602,2]
[353827388,1740081058205,-1545.04,0.00014602,2]
[353827389,1740081058215,-500.0,0.00014602,2]
[353827390,1740081058224,-151.0,0.00014602,2]
[353827391,1740081058234,-12473.25,0.00014602,2]
[353827392,1740081058243,-668.14,0.00014602,2]
[353827393,1740081058252,-1204.27,0.00014602,2]
[353827394,1740081058261,-1809.48,0.00014602,2]
[353827395,1740081058270,-500.0,0.00014602,2]
[353827396,1740081058283,-8422.45,0.00014602,2]
[353827397,1740081058292,-536.89,0.00014602,2]
[353827398,1740081058302,-568.82,0.00014602,2]
[353827399,1740081058311,-2793.5,0.00014602,2]
[353827400,1740081058321,-3282.07,0.00014602,2]
[353827401,1740081058330,-1891.5,0.00014602,2]
[353827402,1740081058339,-744.07961046,0.00014603,2]
[353827403,1740081058349,-500.0,0.00014684,2]
[353827404,1740081058361,-500.0,0.00014684,2]
[353827405,1740081058371,-500.0,0.00014684,2]
[353827406,1740081058380,-500.0,0.00014684,2]
[353827407,1740081058390,-1193.65,0.00014684,2]
[353827408,1740081058399,-584.91,0.00014684,2]
[353827409,1740081058412,-500.0,0.00014684,2]
[353827410,1740081058420,-500.0,0.00014684,2]
[353827411,1740081058430,-562.22,0.00014684,2]
[353827412,1740081058439,-726.14,0.00014684,2]
[353827413,1740081058448,-500.0,0.00014684,2]
[353827414,1740081058458,-500.0,0.00014684,2]
[353827415,1740081058467,-854.98,0.00014684,2]
[353827416,1740081058477,-518.04,0.00014684,2]
[353827417,1740081058487,-796.66,0.00014684,2]
[353827418,1740081058496,-576.57,0.00014684,2]
[353827419,1740081058506,-520.56,0.00014684,2]
[353827420,1740081058516,-500.0,0.00014684,2]
[353827421,1740081058525,-404.5563,0.00014684,2]
[353827422,1740081058534,-500.0,0.00014684,2]
[353827423,1740081058544,-855.71,0.00014684,2]
[353827424,1740081058553,-500.0,0.00014684,2]
[353827425,1740081058563,-653.55,0.00014684,2]
[353827426,1740081058573,-527.25,0.00014684,2]
[353827427,1740081058583,-526.08,0.00014684,2]
[353827428,1740081058592,-500.0,0.00014684,2]
[353827429,1740081058602,-500.0,0.00014684,2]
[353827430,1740081058699,-500.0,0.00014684,2]
[353827431,1740081058709,-151.0,0.00014684,2]
[353827432,1740081058720,-651.0,0.00014684,2]
[353827433,1740081058730,-152.137845,0.00014684,2]
[353827434,1740081058739,-151.0,0.00014684,2]
[353827435,1740081058749,-593.64,0.00014684,2]
[353827436,1740081058758,-753.07,0.00014684,2]
[353827437,1740081058768,-13040.78,0.00014684,2]
[353827438,1740081058777,-1186.37,0.00014684,2]
[353827439,1740081058787,-34993.76,0.00014684,2]
[353827440,1740081058797,-1017.86,0.00014684,2]
[353827441,1740081058806,-500.0,0.00014684,2]
[353827442,1740081058815,-2077.25,0.00014684,2]
[353827443,1740081058826,-963.85,0.00014684,2]
[353827444,1740081058835,-2415.36,0.00014684,2]
[353827445,1740081058845,-1104.4,0.00014684,2]
[353827446,1740081058855,-500.0,0.00014684,2]
[353827447,1740081058865,-928.84,0.00014684,2]
[353827448,1740081058875,-2659.11,0.00014684,2]
[353827449,1740081058887,-5902.48,0.00014684,2]
[353827450,1740081058897,-893.57,0.00014684,2]
[353827451,1740081058908,-500.0,0.00014684,2]
[353827452,1740081058918,-2976.46,0.00014684,2]
[353827453,1740081058928,-637.75,0.00014684,2]
[353827454,1740081058938,-500.0,0.00014684,2]
[353827455,1740081058949,-500.0,0.00014684,2]
[353827456,1740081058959,-1955.2,0.00014684,2]
[353827457,1740081058969,-1867.16,0.00014684,2]
[353827458,1740081058979,-1429.61,0.00014684,2]
[353827459,1740081058988,-500.0,0.00014684,2]
[353827460,1740081058998,-500.0,0.00014684,2]
[353827461,1740081059007,-1152.68,0.00014684,2]
[353827462,1740081059017,-500.0,0.00014684,2]
[353827463,1740081059027,-1741.58,0.00014684,2]
[353827464,1740081059036,-1376.24,0.00014684,2]
[353827465,1740081059046,-5313.9,0.00014684,2]
[353827466,1740081059055,-500.0,0.00014684,2]
[353827467,1740081059064,-1545.04,0.00014684,2]
[353827468,1740081059073,-500.0,0.00014684,2]
[353827469,1740081059083,-12473.25,0.00014684,2]
[353827470,1740081059093,-668.14,0.00014684,2]
[353827471,1740081059102,-1204.27,0.00014684,2]
[353827472,1740081059111,-1809.48,0.00014684,2]
[353827473,1740081059121,-500.0,0.00014684,2]
[353827474,1740081059130,-8422.45,0.00014684,2]
[353827475,1740081059140,-536.89,0.00014684,2]
[353827476,1740081059150,-568.82,0.00014684,2]
[353827477,1740081059161,-2793.5,0.00014684,2]
[353827478,1740081059171,-3282.07,0.00014684,2]
[353827479,1740081059180,-1891.5,0.00014684,2]
[353827480,1740081059189,-744.07961046,0.00014703,2]
[353827481,1740081059198,-150.24,0.00014712,2]
[353827482,1740081059208,-500.0,0.00014712,2]
[353827483,1740081059218,-150.21,0.00014712,2]
[353827484,1740081059228,-500.0,0.00014712,2]
[353827485,1740081059237,-699.0,0.00014712,2]
[353827486,1740081059246,-500.0,0.00014712,2]
[353827487,1740081059256,-150.21,0.00014712,2]
[353827488,1740081059266,-500.0,0.00014712,2]
[353827489,1740081059279,-199.82354316,0.00014712,2]
[353827490,1740081059288,-500.0,0.00014767,2]
[353827491,1740081059298,-500.0,0.00014767,2]
[353827492,1740081059307,-500.0,0.00014767,2]
[353827493,1740081059316,-500.0,0.00014767,2]
[353827494,1740081059326,-1193.65,0.00014767,2]
[353827495,1740081059336,-584.91,0.00014767,2]
[353827496,1740081059346,-500.0,0.00014767,2]
[353827497,1740081059359,-500.0,0.00014767,2]
[353827498,1740081059370,-562.22,0.00014767,2]
[353827499,1740081059380,-726.14,0.00014767,2]
[353827500,1740081059390,-500.0,0.00014767,2]
[353827501,1740081059399,-500.0,0.00014767,2]
[353827502,1740081059411,-854.98,0.00014767,2]
[353827503,1740081059420,-518.04,0.00014767,2]
[353827504,1740081059430,-796.66,0.00014767,2]
[353827505,1740081059441,-576.57,0.00014767,2]
[353827506,1740081059452,-520.56,0.00014767,2]
[353827507,1740081059462,-500.0,0.00014767,2]
[353827508,1740081059472,-500.0,0.00014767,2]
[353827509,1740081059482,-855.71,0.00014767,2]
[353827510,1740081059492,-500.0,0.00014767,2]
[353827511,1740081059502,-653.55,0.00014767,2]
[353827512,1740081059512,-527.25,0.00014767,2]
[353827513,1740081059522,-526.08,0.00014767,2]
[353827514,1740081059531,-500.0,0.00014767,2]
[353827515,1740081059541,-151.0,0.00014767,2]
[353827516,1740081059551,-500.0,0.00014767,2]
[353827517,1740081059560,-441.83645634,0.00014767,2]
[353827518,1740081059570,-651.0,0.00014767,2]
[353827519,1740081059580,-593.64,0.00014767,2]
[353827520,1740081059589,-753.07,0.00014767,2]
[353827521,1740081059599,-13040.78,0.00014767,2]
[353827522,1740081059608,-1186.37,0.00014767,2]
[353827523,1740081059618,-34993.76,0.00014767,2]
[353827524,1740081059628,-1017.86,0.00014767,2]
[353827525,1740081059638,-500.0,0.00014767,2]
[353827526,1740081059648,-2077.25,0.00014767,2]
[353827527,1740081059658,-963.85,0.00014767,2]
[353827528,1740081059668,-2415.36,0.00014767,2]
[353827529,1740081059678,-1104.4,0.00014767,2]
[353827530,1740081059688,-500.0,0.00014767,2]
[353827531,1740081059698,-928.84,0.00014767,2]
[353827532,1740081059708,-2659.11,0.00014767,2]
[353827533,1740081059718,-5902.48,0.00014767,2]
[353827534,1740081059728,-893.57,0.00014767,2]
[353827535,1740081059737,-500.0,0.00014767,2]
[353827536,1740081059747,-2976.46,0.00014767,2]
[353827537,1740081059757,-637.75,0.00014767,2]
[353827538,1740081059767,-500.0,0.00014767,2]
[353827539,1740081059777,-500.0,0.00014767,2]
[353827540,1740081059787,-1955.2,0.00014767,2]
[353827541,1740081059796,-1867.16,0.00014767,2]
[353827542,1740081059806,-1429.61,0.00014767,2]
[353827543,1740081059815,-500.0,0.00014767,2]
[353827544,1740081059825,-500.0,0.00014767,2]
[353827545,1740081059835,-1152.68,0.00014767,2]
[353827546,1740081059845,-500.0,0.00014767,2]
[353827547,1740081059854,-1741.58,0.00014767,2]
[353827548,1740081059864,-1376.24,0.00014767,2]
[353827549,1740081059873,-5313.9,0.00014767,2]
[353827550,1740081059883,-500.0,0.00014767,2]
[353827551,1740081059892,-1545.04,0.00014767,2]
[353827552,1740081059902,-500.0,0.00014767,2]
[353827553,1740081059912,-12473.25,0.00014767,2]
[353827554,1740081059921,-668.14,0.00014767,2]
[353827555,1740081059931,-1204.27,0.00014767,2]
[353827556,1740081059941,-1809.48,0.00014767,2]
[353827557,1740081059951,-500.0,0.00014767,2]
[353827558,1740081059962,-8422.45,0.00014767,2]
[353827559,1740081059972,-536.89,0.00014767,2]
[353827560,1740081059983,-568.82,0.00014767,2]
[353827561,1740081059993,-2793.5,0.00014767,2]
[353827562,1740081060002,-3282.07,0.00014767,2]
[353827563,1740081060013,-1891.5,0.00014767,2]
[353827564,1740081060023,-500.0,0.00014773,2]
[353827565,1740081060033,-744.07961046,0.00014803,2]
[353827566,1740081060043,-500.0,0.00014849,2]
[353827567,1740081060054,-500.0,0.00014849,2]
[353827568,1740081060064,-500.0,0.00014849,2]
[353827569,1740081060075,-500.0,0.00014849,2]
[353827570,1740081060086,-1193.65,0.00014849,2]
[353827571,1740081060097,-584.91,0.00014849,2]
[353827572,1740081060107,-500.0,0.00014849,2]
[353827573,1740081060117,-562.22,0.00014849,2]
[353827574,1740081060127,-726.14,0.00014849,2]
[353827575,1740081060136,-500.0,0.00014849,2]
[353827576,1740081060146,-500.0,0.00014849,2]
[353827577,1740081060157,-854.98,0.00014849,2]
[353827578,1740081060166,-518.04,0.00014849,2]
[353827579,1740081060175,-796.66,0.00014849,2]
[353827580,1740081060185,-576.57,0.00014849,2]
[353827581,1740081060196,-520.56,0.00014849,2]
[353827582,1740081060206,-500.0,0.00014849,2]
[353827583,1740081060216,-624.42931088,0.00014849,2]
[353827584,1740081060226,-855.71,0.00014849,2]
[353827585,1740081060236,-500.0,0.00014849,2]
[353827586,1740081060246,-653.55,0.00014849,2]
[353827587,1740081060256,-527.25,0.00014849,2]
[353827588,1740081060266,-526.08,0.00014849,2]
[353827589,1740081060278,-500.0,0.00014849,2]
[353827590,1740081060367,-500.0,0.00014849,2]
[353827591,1740081060378,-651.0,0.00014849,2]
[353827592,1740081060388,-593.64,0.00014849,2]
[353827593,1740081060398,-753.07,0.00014849,2]
[353827594,1740081060410,-13040.78,0.00014849,2]
[353827595,1740081060426,-1186.37,0.00014849,2]
[353827596,1740081060436,-34993.76,0.00014849,2]
[353827597,1740081060446,-1017.86,0.00014849,2]
[353827598,1740081060455,-500.0,0.00014849,2]
[353827599,1740081060466,-2077.25,0.00014849,2]
[353827600,1740081060476,-963.85,0.00014849,2]
[353827601,1740081060486,-2415.36,0.00014849,2]
[353827602,1740081060495,-1104.4,0.00014849,2]
[353827603,1740081060505,-500.0,0.00014849,2]
[353827604,1740081060515,-928.84,0.00014849,2]
[353827605,1740081060525,-2659.11,0.00014849,2]
[353827606,1740081060535,-5902.48,0.00014849,2]
[353827607,1740081060545,-893.57,0.00014849,2]
[353827608,1740081060555,-500.0,0.00014849,2]
[353827609,1740081060565,-2976.46,0.00014849,2]
[353827610,1740081060575,-637.75,0.00014849,2]
[353827611,1740081060585,-500.0,0.00014849,2]
[353827612,1740081060595,-500.0,0.00014849,2]
[353827613,1740081060605,-1955.2,0.00014849,2]
[353827614,1740081060615,-1867.16,0.00014849,2]
[353827615,1740081060625,-1429.61,0.00014849,2]
[353827616,1740081060634,-500.0,0.00014849,2]
[353827617,1740081060645,-500.0,0.00014849,2]
[353827618,1740081060655,-1152.68,0.00014849,2]
[353827619,1740081060665,-1741.58,0.00014849,2]
[353827620,1740081060675,-1376.24,0.00014849,2]
[353827621,1740081060685,-5313.9,0.00014849,2]
[353827622,1740081060695,-500.0,0.00014849,2]
[353827623,1740081060705,-1545.04,0.00014849,2]
[353827624,1740081060715,-500.0,0.00014849,2]
[353827625,1740081060725,-12473.25,0.00014849,2]
[353827626,1740081060735,-668.14,0.00014849,2]
[353827627,1740081060747,-1204.27,0.00014849,2]
[353827628,1740081060759,-1809.48,0.00014849,2]
[353827629,1740081060771,-500.0,0.00014849,2]
[353827630,1740081060782,-8422.45,0.00014849,2]
[353827631,1740081060794,-536.89,0.00014849,2]
[353827632,1740081060805,-568.82,0.00014849,2]
[353827633,1740081060815,-2793.5,0.00014849,2]
[353827634,1740081060825,-3282.07,0.00014849,2]
[353827635,1740081060835,-1891.5,0.00014849,2]
[353827636,1740081060844,-151.0,0.000149,2]
[353827637,1740081060854,-151.0,0.000149,2]
[353827638,1740081060864,-158.866005,0.000149,2]
[353827639,1740081060873,-151.323662,0.000149,2]
[353827640,1740081060883,-581202.102713,0.000149,2]
[353827641,1740081060893,-151.0,0.000149,2]
[353827642,1740081060903,-151.0,0.000149,2]
[353827643,1740081060913,-744.07961046,0.00014903,2]
[353827644,1740081060923,-500.0,0.00014931,2]
[353827645,1740081060932,-463.35793124,0.00014931,2]
[353827646,1740081060941,-299.66118618,0.00014931,2]
[353827647,1740081060951,-500.0,0.00014931,2]
[353827648,1740081060963,-1193.65,0.00014931,2]
[353827649,1740081060973,-584.91,0.00014931,2]
[353827650,1740081060983,-500.0,0.00014931,2]
[353827651,1740081060993,-562.22,0.00014931,2]
[353827652,1740081061002,-726.14,0.00014931,2]
[353827653,1740081061012,-500.0,0.00014931,2]
[353827654,1740081061022,-500.0,0.00014931,2]
[353827655,1740081061031,-854.98,0.00014931,2]
[353827656,1740081061042,-518.04,0.00014931,2]
[353827657,1740081061051,-796.66,0.00014931,2]
[353827658,1740081061061,-576.57,0.00014931,2]
[353827659,1740081061071,-520.56,0.00014931,2]
[353827660,1740081061080,-500.0,0.00014931,2]
[353827661,1740081061090,-855.71,0.00014931,2]
[353827662,1740081061100,-500.0,0.00014931,2]
[353827663,1740081061109,-653.55,0.00014931,2]
[353827664,1740081061118,-527.25,0.00014931,2]
[353827665,1740081061127,-526.08,0.00014931,2]
[353827666,1740081061137,-494.05433372,0.00014931,2]
[353827667,1740081061146,-500.0,0.00014931,2]
[353827668,1740081061156,-651.0,0.00014931,2]
[353827669,1740081061166,-593.64,0.00014931,2]
[353827670,1740081061175,-753.07,0.00014931,2]
[353827671,1740081061185,-16.52139616,0.00014931,2]
[353827698,1740082238050,-183.82870761,0.00013598,2]
[353827700,1740082238060,-115.42129239,0.000136,2]
[353827706,1740082238103,-7884.57870761,0.000136,2]
[353827708,1740082238113,-300.0,0.00013696,2]
[353827710,1740082238122,-500.0,0.00013697,2]
[353827712,1740082238132,-583.85961369,0.00013697,2]
[353827714,1740082238141,-500.0,0.00013697,2]
[353827716,1740082238150,-290.53263809,0.00013697,2]
[353827718,1740082238160,-255.23769833,0.00013697,2]
[353827720,1740082238169,-500.0,0.00013697,2]
[353827722,1740082238178,-554.73652323,0.00013697,2]
[353827724,1740082238187,-500.0,0.00013697,2]
[353827726,1740082238197,-500.0,0.00013697,2]
[353827728,1740082238206,-500.0,0.00013697,2]
[353827730,1740082238215,-500.0,0.00013697,2]
[353827732,1740082238224,-500.0,0.00013697,2]
[353827734,1740082238234,-300.0,0.00013697,2]
[353827736,1740082238243,-500.0,0.00013697,2]
[353827738,1740082238251,-500.0,0.00013697,2]
[353827740,1740082238260,-330.0,0.00013697,2]
[353827742,1740082238270,-500.0,0.00013697,2]
[353827744,1740082238279,-500.0,0.00013697,2]
[353827746,1740082238288,-500.0,0.00013697,2]
[353827748,1740082238298,-500.0,0.00013697,2]
[353827750,1740082238307,-500.0,0.00013697,2]
[353827752,1740082238316,-288.43871038,0.00013697,2]
[353827754,1740082238325,-500.0,0.00013697,2]
[353827756,1740082238334,-500.0,0.00013697,2]
[353827758,1740082238343,-500.0,0.00013697,2]
[353827760,1740082238352,-500.0,0.00013697,2]
[353827761,1740082238361,-250.0,0.00013697,2]
[353827764,1740082238371,-6500.0,0.00013697,2]
[353827765,1740082238380,-500.0,0.00013698,2]
[353827768,1740082238390,-494.87796421,0.00013698,2]
[353827770,1740082238399,-500.0,0.00013698,2]
[353827771,1740082238408,-500.0,0.00013698,2]
[353827773,1740082238417,-288.91763651,0.00013698,2]
[353827775,1740082238427,-500.0,0.00013698,2]
[353827777,1740082238436,-165.87544267,0.00013698,2]
[353827779,1740082238445,-500.0,0.00013698,2]
[353827781,1740082238454,-150.41863329,0.00013698,2]
[353827783,1740082238467,-349.58136671,0.00013698,2]
[353827785,1740082238476,-500.0,0.00013698,2]
[353827787,1740082238485,-500.0,0.00013698,2]
[353827789,1740082238494,-500.0,0.00013698,2]
[353827791,1740082238503,-500.0,0.00013698,2]
[353827793,1740082238513,-195.86670974,0.00013698,2]
[353827795,1740082238522,-500.0,0.00013698,2]
[353827797,1740082238531,-500.0,0.00013698,2]
[353827799,1740082238540,-500.0,0.00013698,2]
[353827801,1740082238549,-500.0,0.00013698,2]
[353827803,1740082238558,-500.0,0.00013698,2]
[353827805,1740082238568,-500.0,0.00013698,2]
[353827807,1740082238578,-500.0,0.00013698,2]
[353827809,1740082238587,-500.0,0.00013698,2]
[353827812,1740082238597,-500.0,0.00013698,2]
[353827814,1740082238606,-500.0,0.00013698,2]
[353827816,1740082238615,-500.0,0.00013698,2]
[353827818,1740082238624,-500.0,0.00013698,2]
[353827820,1740082238632,-500.0,0.00013698,2]
[353827821,1740082238642,-502.18607029,0.00013698,2]
[353827823,1740082238655,-500.0,0.00013698,2]
[353827826,1740082238664,-546.72239541,0.00013698,2]
[353827827,1740082238674,-501.8535876,0.00013698,2]
[353827828,1740082238684,-500.0,0.00013698,2]
[353827829,1740082238694,-500.0,0.00013698,2]
[353827830,1740082238704,-500.0,0.00013698,2]
[353827831,1740082238713,-500.0,0.00013698,2]
[353827848,1740082238861,-502.39894354,0.00013698,2]
[353827851,1740082238871,-500.0,0.00013698,2]
[353827853,1740082238882,-500.0,0.00013698,2]
[353827855,1740082238891,-500.0,0.00013698,2]
[353827857,1740082238900,-500.0,0.00013698,2]
[353827859,1740082238910,-500.0,0.00013698,2]
[353827861,1740082238918,-500.0,0.00013698,2]
[353827863,1740082238927,-500.0,0.00013698,2]
[353827865,1740082238937,-500.0,0.00013698,2]
[353827867,1740082238946,-500.0,0.00013698,2]
[353827868,1740082238955,-500.0,0.00013698,2]
[353827870,1740082238965,-500.0,0.00013698,2]
[353827872,1740082238974,-500.0,0.00013698,2]
[353827874,1740082238984,-500.0,0.00013698,2]
[353827876,1740082238993,-500.0,0.00013698,2]
[353827878,1740082239003,-1191.1,0.00013698,2]
[353827879,1740082239012,-500.0,0.00013698,2]
[353827882,1740082239022,-501.26296343,0.00013698,2]
[353827884,1740082239032,-500.0,0.00013698,2]
[353827886,1740082239041,-500.0,0.00013698,2]
[353827888,1740082239051,-500.0,0.00013698,2]